[Event "*** Titled Tuesday Blitz"]
[Site "Chess.com"]
[Date "2021.02.16"]
[Round "10"]
[White "mikolka1985"]
[Black "Grieve72"]
[Result "0-1"]
[WhiteElo "2605"]
[BlackElo "2485"]
[TimeControl "180+1"]
[EndTime "11:59:54 PST"]
[Termination "Grieve72 won on time"]

1. d4 {[%clk 0:03:00.9]} 1... d5 {[%clk 0:02:58.5]} 2. c4 {[%clk 0:03:00.1]}
2... e6 {[%clk 0:02:58.8]} 3. Nc3 {[%clk 0:02:58.5]} 3... c6 {[%clk 0:02:59.2]}
4. Nf3 {[%clk 0:02:57.9]} 4... dxc4 {[%clk 0:02:59.2]} 5. e3 {[%clk 0:02:56.4]}
5... b5 {[%clk 0:02:59.2]} 6. a4 {[%clk 0:02:55.9]} 6... Bb4 {[%clk 0:02:59.7]}
7. Bd2 {[%clk 0:02:54.7]} 7... a5 {[%clk 0:03:00.1]} 8. axb5 {[%clk 0:02:53.2]}
8... Bxc3 {[%clk 0:03:00.6]} 9. Bxc3 {[%clk 0:02:52.5]} 9... cxb5 {[%clk
0:03:01.2]} 10. b3 {[%clk 0:02:51.8]} 10... Bb7 {[%clk 0:03:01.4]} 11. bxc4
{[%clk 0:02:51.6]} 11... b4 {[%clk 0:03:01.9]} 12. Bb2 {[%clk 0:02:52]} 12...
Nf6 {[%clk 0:03:02.4]} 13. Bd3 {[%clk 0:02:52.3]} 13... O-O {[%clk 0:03:02.8]}
14. O-O {[%clk 0:02:52.6]} 14... Nbd7 {[%clk 0:03:03.3]} 15. Nd2 {[%clk
0:02:52.7]} 15... Qc7 {[%clk 0:03:02.5]} 16. h3 {[%clk 0:02:52]} 16... a4 {[%clk
0:03:00]} 17. Rb1 {[%clk 0:02:12.3]} 17... e5 {[%clk 0:02:59.8]} 18. Ba1 {[%clk
0:02:10.3]} 18... b3 {[%clk 0:02:59.2]} 19. Qc1 {[%clk 0:02:00.7]} 19... Rfd8
{[%clk 0:02:38.3]} 20. Qa3 {[%clk 0:01:54.5]} 20... h6 {[%clk 0:02:36.5]} 21.
Rfd1 {[%clk 0:01:52.6]} 21... Qc6 {[%clk 0:02:20]} 22. Bf1 {[%clk 0:01:46.2]}
22... exd4 {[%clk 0:02:03.5]} 23. exd4 {[%clk 0:01:45.2]} 23... Nh5 {[%clk
0:02:04.1]} 24. d5 {[%clk 0:01:20.7]} 24... Qg6 {[%clk 0:01:57.9]} 25. Bd4
{[%clk 0:01:04.9]} 25... Nf4 {[%clk 0:01:45.1]} 26. Kh2 {[%clk 0:01:02.9]} 26...
Nf6 {[%clk 0:01:38.9]} 27. Be3 {[%clk 0:00:54.7]} 27... N6xd5 {[%clk 0:01:34.3]}
28. cxd5 {[%clk 0:00:52.2]} 28... Nxd5 {[%clk 0:01:35.2]} 29. Nc4 {[%clk
0:00:47.9]} 29... Rdb8 {[%clk 0:00:54.9]} 30. Bd4 {[%clk 0:00:35.8]} 30... Qg5
{[%clk 0:00:38.6]} 31. Ne3 {[%clk 0:00:25.7]} 31... Nf4 {[%clk 0:00:32.6]} 32.
g3 {[%clk 0:00:21.6]} 32... Ne6 {[%clk 0:00:32.7]} 33. Rb2 {[%clk 0:00:18.7]}
33... Bf3 {[%clk 0:00:28.7]} 34. Rdd2 {[%clk 0:00:18.4]} 34... Rd8 {[%clk
0:00:22.2]} 35. Bc3 {[%clk 0:00:17.6]} 35... Rdc8 {[%clk 0:00:20.7]} 36. Bb4
{[%clk 0:00:14.7]} 36... Qe5 {[%clk 0:00:20.7]} 37. Rb1 {[%clk 0:00:13.7]} 37...
Nd4 {[%clk 0:00:19.5]} 38. Bd6 {[%clk 0:00:12.5]} 38... Qe4 {[%clk 0:00:18.1]}
39. Qb2 {[%clk 0:00:11.6]} 39... a3 {[%clk 0:00:14.2]} 40. Qxd4 {[%clk 0:00:11]}
40... Qxd4 {[%clk 0:00:13.5]} 41. Rxd4 {[%clk 0:00:10.6]} 41... a2 {[%clk
0:00:13.3]} 42. Ra1 {[%clk 0:00:09.3]} 42... b2 {[%clk 0:00:13.3]} 43. Nc2
{[%clk 0:00:08.6]} 43... b1=Q {[%clk 0:00:12.3]} 44. Bd3 {[%clk 0:00:07.2]}
44... Qb2 {[%clk 0:00:09.4]} 45. Be5 {[%clk 0:00:06.7]} 45... Qb6 {[%clk
0:00:04.5]} 46. Kg1 {[%clk 0:00:04.9]} 46... Qa5 {[%clk 0:00:04.8]} 47. Rd6
{[%clk 0:00:04]} 47... Qxe5 {[%clk 0:00:04.3]} 48. Re1 {[%clk 0:00:02.8]} 48...
Qxd6 {[%clk 0:00:04.3]} 0-1

[Event "*** Titled Tuesday Blitz"]
[Site "Chess.com"]
[Date "2021.02.16"]
[Round "10"]
[White "TimKett"]
[Black "Piotrek1979"]
[Result "0-1"]
[WhiteElo "2234"]
[BlackElo "2407"]
[TimeControl "180+1"]
[EndTime "11:59:55 PST"]
[Termination "Piotrek1979 won on time"]

1. e4 {[%clk 0:03:00.9]} 1... c5 {[%clk 0:02:58.6]} 2. Nf3 {[%clk 0:03:00.2]}
2... Nc6 {[%clk 0:02:58.8]} 3. d4 {[%clk 0:03:00.4]} 3... cxd4 {[%clk
0:02:59.7]} 4. Nxd4 {[%clk 0:03:00.7]} 4... g6 {[%clk 0:02:59.3]} 5. Nc3 {[%clk
0:03:00.7]} 5... Bg7 {[%clk 0:02:58.5]} 6. Be3 {[%clk 0:03:01.3]} 6... Nf6
{[%clk 0:02:58]} 7. Bc4 {[%clk 0:03:01.9]} 7... Qa5 {[%clk 0:02:54.4]} 8. O-O
{[%clk 0:02:58.5]} 8... O-O {[%clk 0:02:52.5]} 9. Bb3 {[%clk 0:02:57.4]} 9... d6
{[%clk 0:02:50.1]} 10. h3 {[%clk 0:02:57.2]} 10... Bd7 {[%clk 0:02:48.6]} 11. f4
{[%clk 0:02:54.2]} 11... Nxd4 {[%clk 0:02:48]} 12. Bxd4 {[%clk 0:02:53.7]} 12...
Bc6 {[%clk 0:02:48.8]} 13. Qe2 {[%clk 0:02:42.2]} 13... Qb4 {[%clk 0:02:47.5]}
14. Rad1 {[%clk 0:02:38.6]} 14... Nxe4 {[%clk 0:02:46.9]} 15. Bxg7 {[%clk
0:02:23.7]} 15... Kxg7 {[%clk 0:02:47.8]} 16. Rd3 {[%clk 0:01:39.6]} 16... Nxc3
{[%clk 0:02:32]} 17. bxc3 {[%clk 0:01:36]} 17... Qc5+ {[%clk 0:02:29.9]} 18. Kh1
{[%clk 0:01:32.8]} 18... e6 {[%clk 0:02:20.9]} 19. Qd2 {[%clk 0:01:00.8]} 19...
Rad8 {[%clk 0:02:18]} 20. Rd1 {[%clk 0:01:00.7]} 20... d5 {[%clk 0:01:38.8]} 21.
c4 {[%clk 0:00:57.6]} 21... d4 {[%clk 0:01:19.4]} 22. Rxd4 {[%clk 0:00:56.7]}
22... Rxd4 {[%clk 0:01:19.5]} 23. Qxd4+ {[%clk 0:00:56.9]} 23... Qxd4 {[%clk
0:01:19.9]} 24. Rxd4 {[%clk 0:00:57.1]} 24... Kf6 {[%clk 0:01:10.8]} 25. Kg1
{[%clk 0:00:53.3]} 25... Ke7 {[%clk 0:01:09.7]} 26. Kf2 {[%clk 0:00:50.9]} 26...
Rd8 {[%clk 0:01:09.5]} 27. c3 {[%clk 0:00:51.4]} 27... b6 {[%clk 0:01:07.5]} 28.
g4 {[%clk 0:00:50.9]} 28... h6 {[%clk 0:01:01.2]} 29. Ke3 {[%clk 0:00:50.9]}
29... g5 {[%clk 0:00:58.9]} 30. Rxd8 {[%clk 0:00:19.3]} 30... Kxd8 {[%clk
0:00:59.8]} 31. fxg5 {[%clk 0:00:19.6]} 31... hxg5 {[%clk 0:00:58.4]} 32. Kd4
{[%clk 0:00:20.2]} 32... Ke7 {[%clk 0:00:58.2]} 33. c5 {[%clk 0:00:20.5]} 33...
b5 {[%clk 0:00:58.4]} 34. c4 {[%clk 0:00:20.2]} 34... b4 {[%clk 0:00:57.6]} 35.
Bc2 {[%clk 0:00:18.2]} 35... a5 {[%clk 0:00:56.5]} 36. Ke5 {[%clk 0:00:14.9]}
36... f6+ {[%clk 0:00:55.5]} 37. Kd4 {[%clk 0:00:15.3]} 37... a4 {[%clk
0:00:53.5]} 38. Ke3 {[%clk 0:00:12.8]} 38... a3 {[%clk 0:00:41]} 39. Kd4 {[%clk
0:00:11.5]} 39... Bg2 {[%clk 0:00:39.5]} 40. c6 {[%clk 0:00:09.3]} 40... Kd6
{[%clk 0:00:36.8]} 41. c7 {[%clk 0:00:08.2]} 41... e5+ {[%clk 0:00:30.5]} 42.
Ke3 {[%clk 0:00:06.3]} 42... Kxc7 {[%clk 0:00:30.2]} 43. Bd1 {[%clk 0:00:05.4]}
43... Kb6 {[%clk 0:00:28.5]} 44. Kf2 {[%clk 0:00:05.8]} 44... Be4 {[%clk
0:00:23.6]} 45. Ke3 {[%clk 0:00:04.6]} 45... Bb1 {[%clk 0:00:23]} 46. Bb3 {[%clk
0:00:04.9]} 46... Kc5 {[%clk 0:00:22.8]} 47. Kd2 {[%clk 0:00:04.6]} 47... Be4
{[%clk 0:00:21.4]} 48. Ke3 {[%clk 0:00:04.8]} 48... Bg2 {[%clk 0:00:18.4]} 49.
Kf2 {[%clk 0:00:04.3]} 49... Bxh3 {[%clk 0:00:18.3]} 50. Bd1 {[%clk 0:00:03.9]}
50... Kxc4 {[%clk 0:00:16.8]} 51. Kg1 {[%clk 0:00:02.5]} 51... Kc3 {[%clk
0:00:12.8]} 52. Kh2 {[%clk 0:00:02.5]} 52... Bxg4 {[%clk 0:00:13]} 53. Bxg4
{[%clk 0:00:02.6]} 53... b3 {[%clk 0:00:13.5]} 0-1

[Event "*** Titled Tuesday Blitz"]
[Site "Chess.com"]
[Date "2021.02.16"]
[Round "10"]
[White "chesslh19"]
[Black "EnergeticHay"]
[Result "1-0"]
[WhiteElo "2233"]
[BlackElo "2325"]
[TimeControl "180+1"]
[EndTime "11:59:56 PST"]
[Termination "chesslh19 won by checkmate"]

1. e4 {[%clk 0:03:00.9]} 1... c5 {[%clk 0:02:59.4]} 2. Nf3 {[%clk 0:03:00.8]}
2... d6 {[%clk 0:02:59.2]} 3. d4 {[%clk 0:03:01.4]} 3... cxd4 {[%clk 0:02:59.6]}
4. Nxd4 {[%clk 0:03:02.3]} 4... Nf6 {[%clk 0:02:58.8]} 5. Nc3 {[%clk 0:03:02.8]}
5... a6 {[%clk 0:02:58.8]} 6. Be2 {[%clk 0:03:02.9]} 6... e6 {[%clk 0:02:00.9]}
7. O-O {[%clk 0:03:00.2]} 7... Be7 {[%clk 0:01:50.2]} 8. a4 {[%clk 0:02:56.9]}
8... O-O {[%clk 0:01:49.4]} 9. f4 {[%clk 0:02:54.5]} 9... Qc7 {[%clk 0:01:47.7]}
10. Be3 {[%clk 0:02:53.6]} 10... b6 {[%clk 0:01:45.4]} 11. Bf3 {[%clk
0:02:24.2]} 11... Bb7 {[%clk 0:01:45.2]} 12. f5 {[%clk 0:02:16.5]} 12... e5
{[%clk 0:01:44.3]} 13. Nb3 {[%clk 0:02:16.7]} 13... Nbd7 {[%clk 0:01:42.8]} 14.
g4 {[%clk 0:02:11.9]} 14... Nc5 {[%clk 0:01:38]} 15. Nxc5 {[%clk 0:02:11.6]}
15... bxc5 {[%clk 0:01:35.9]} 16. g5 {[%clk 0:02:03.1]} 16... Nd7 {[%clk
0:01:34.2]} 17. Nd5 {[%clk 0:01:58.8]} 17... Bxd5 {[%clk 0:01:31.8]} 18. Qxd5
{[%clk 0:01:58.9]} 18... Nb6 {[%clk 0:01:30.5]} 19. Qd3 {[%clk 0:01:41.6]} 19...
Rab8 {[%clk 0:01:23]} 20. Qxa6 {[%clk 0:01:31.3]} 20... Ra8 {[%clk 0:01:08.9]}
21. Qe2 {[%clk 0:01:08.8]} 21... Rxa4 {[%clk 0:01:06.1]} 22. b3 {[%clk
0:01:02.4]} 22... Rxa1 {[%clk 0:01:02.2]} 23. Rxa1 {[%clk 0:01:03.3]} 23... Ra8
{[%clk 0:01:01.1]} 24. Rxa8+ {[%clk 0:01:00.4]} 24... Nxa8 {[%clk 0:01:02]} 25.
Qa6 {[%clk 0:00:58.4]} 25... Nb6 {[%clk 0:01:00.4]} 26. h4 {[%clk 0:00:44.2]}
26... f6 {[%clk 0:00:50.2]} 27. Be2 {[%clk 0:00:38.3]} 27... Kf8 {[%clk
0:00:35.4]} 28. Bc4 {[%clk 0:00:35.9]} 28... Nxc4 {[%clk 0:00:32.9]} 29. Qxc4
{[%clk 0:00:35.5]} 29... Qc6 {[%clk 0:00:32.4]} 30. g6 {[%clk 0:00:25.8]} 30...
hxg6 {[%clk 0:00:29]} 31. fxg6 {[%clk 0:00:26.1]} 31... Qe8 {[%clk 0:00:28.9]}
32. h5 {[%clk 0:00:24.8]} 32... f5 {[%clk 0:00:27.7]} 33. exf5 {[%clk
0:00:17.3]} 33... Bf6 {[%clk 0:00:26.8]} 34. h6 {[%clk 0:00:14.3]} 34... gxh6
{[%clk 0:00:27.7]} 35. Bxh6+ {[%clk 0:00:14]} 35... Bg7 {[%clk 0:00:27.9]} 36.
Bxg7+ {[%clk 0:00:11.3]} 36... Kxg7 {[%clk 0:00:28.8]} 37. Qd5 {[%clk
0:00:10.5]} 37... Qd7 {[%clk 0:00:25.4]} 38. Qe4 {[%clk 0:00:07.1]} 38... Qe7
{[%clk 0:00:24]} 39. Qg4 {[%clk 0:00:04.8]} 39... Qf6 {[%clk 0:00:22.5]} 40. Qh5
{[%clk 0:00:05]} 40... Kf8 {[%clk 0:00:18.9]} 41. Kg2 {[%clk 0:00:05]} 41... Qg7
{[%clk 0:00:16.4]} 42. Kf3 {[%clk 0:00:04.8]} 42... d5 {[%clk 0:00:15.3]} 43.
Qg5 {[%clk 0:00:04.8]} 43... e4+ {[%clk 0:00:14.1]} 44. Kg4 {[%clk 0:00:05.1]}
44... Qc3 {[%clk 0:00:10.1]} 45. Qd8+ {[%clk 0:00:04.8]} 45... Kg7 {[%clk
0:00:07.8]} 46. Qe7+ {[%clk 0:00:05.1]} 46... Kg8 {[%clk 0:00:07]} 47. Qf7+
{[%clk 0:00:05.2]} 47... Kh8 {[%clk 0:00:06.5]} 48. Qh7# {[%clk 0:00:05.7]} 1-0

[Event "*** Titled Tuesday Blitz"]
[Site "Chess.com"]
[Date "2021.02.16"]
[Round "10"]
[White "NTBT_DHS"]
[Black "Nozdrachev_Leonid"]
[Result "1-0"]
[WhiteElo "2780"]
[BlackElo "2541"]
[TimeControl "180+1"]
[EndTime "12:00:02 PST"]
[Termination "NTBT_DHS won on time"]

1. d4 {[%clk 0:03:00]} 1... d6 {[%clk 0:02:59.6]} 2. c4 {[%clk 0:02:59.3]} 2...
e5 {[%clk 0:02:58.4]} 3. Nc3 {[%clk 0:02:58.2]} 3... Nf6 {[%clk 0:02:56.6]} 4.
g3 {[%clk 0:02:56]} 4... g6 {[%clk 0:02:54.8]} 5. Bg2 {[%clk 0:02:55]} 5... Bg7
{[%clk 0:02:54.4]} 6. dxe5 {[%clk 0:02:55]} 6... dxe5 {[%clk 0:02:54.1]} 7.
Qxd8+ {[%clk 0:02:55.9]} 7... Kxd8 {[%clk 0:02:54.4]} 8. Bg5 {[%clk 0:02:55.9]}
8... c6 {[%clk 0:02:53.7]} 9. O-O-O+ {[%clk 0:02:53.5]} 9... Kc7 {[%clk
0:02:53]} 10. Nf3 {[%clk 0:02:42.5]} 10... Ng4 {[%clk 0:02:47.3]} 11. Rhf1
{[%clk 0:02:32.9]} 11... f6 {[%clk 0:02:46.5]} 12. Bd2 {[%clk 0:02:31.8]} 12...
Be6 {[%clk 0:02:45.9]} 13. h3 {[%clk 0:02:30.7]} 13... Nh6 {[%clk 0:02:43.8]}
14. b3 {[%clk 0:02:30.3]} 14... Nd7 {[%clk 0:02:42.1]} 15. Ne4 {[%clk
0:02:29.9]} 15... Nf7 {[%clk 0:02:40.2]} 16. Bc3 {[%clk 0:02:23.9]} 16... h6
{[%clk 0:02:36.5]} 17. Nh4 {[%clk 0:02:19.2]} 17... f5 {[%clk 0:02:35.4]} 18.
Nxg6 {[%clk 0:02:04.7]} 18... fxe4 {[%clk 0:02:31.9]} 19. Nxh8 {[%clk
0:02:04.1]} 19... Rxh8 {[%clk 0:02:29.7]} 20. Bxe4 {[%clk 0:01:48.1]} 20... Bxh3
{[%clk 0:02:24]} 21. Rh1 {[%clk 0:01:48.7]} 21... Bg4 {[%clk 0:02:20.9]} 22. f3
{[%clk 0:01:48.6]} 22... Be6 {[%clk 0:02:19.5]} 23. Bg6 {[%clk 0:01:43]} 23...
Nd6 {[%clk 0:02:06.5]} 24. e4 {[%clk 0:01:30.3]} 24... b5 {[%clk 0:02:05.6]} 25.
Ba5+ {[%clk 0:01:26.7]} 25... Nb6 {[%clk 0:01:55.3]} 26. c5 {[%clk 0:01:22.9]}
26... Nb7 {[%clk 0:01:50.8]} 27. cxb6+ {[%clk 0:01:21.5]} 27... axb6 {[%clk
0:01:51.7]} 28. Bc3 {[%clk 0:01:21.1]} 28... Nc5 {[%clk 0:01:37.2]} 29. f4
{[%clk 0:01:18.7]} 29... Bg4 {[%clk 0:01:36.7]} 30. Rd2 {[%clk 0:01:16.9]} 30...
Bf3 {[%clk 0:01:34.6]} 31. Re1 {[%clk 0:01:13.7]} 31... h5 {[%clk 0:01:26.1]}
32. Kc2 {[%clk 0:01:02.8]} 32... h4 {[%clk 0:01:23.3]} 33. gxh4 {[%clk
0:00:59.3]} 33... Rxh4 {[%clk 0:01:22.7]} 34. fxe5 {[%clk 0:00:56]} 34... Bxe4+
{[%clk 0:01:03.9]} 35. Bxe4 {[%clk 0:00:50.9]} 35... Nxe4 {[%clk 0:01:04.8]} 36.
Rg2 {[%clk 0:00:49.3]} 36... Bf8 {[%clk 0:00:54.2]} 37. Bb2 {[%clk 0:00:48.3]}
37... Kd7 {[%clk 0:00:37]} 38. Ree2 {[%clk 0:00:36.7]} 38... Be7 {[%clk
0:00:28.2]} 39. Rg6 {[%clk 0:00:32.7]} 39... Nc5 {[%clk 0:00:22.2]} 40. e6+
{[%clk 0:00:31.3]} 40... Kd6 {[%clk 0:00:12.6]} 41. Rd2+ {[%clk 0:00:31.9]}
41... Kc7 {[%clk 0:00:12.4]} 42. Be5+ {[%clk 0:00:32.3]} 42... Kb7 {[%clk
0:00:08.9]} 43. Rg7 {[%clk 0:00:31.2]} 43... Ka6 {[%clk 0:00:05]} 44. Rxe7
{[%clk 0:00:30.7]} 44... b4 {[%clk 0:00:05.9]} 45. Re8 {[%clk 0:00:29]} 45...
Kb5 {[%clk 0:00:05.6]} 46. e7 {[%clk 0:00:29.5]} 46... Re4 {[%clk 0:00:04.7]}
47. Red8 {[%clk 0:00:26.3]} 47... Rxe5 {[%clk 0:00:03.8]} 48. e8=Q {[%clk
0:00:26.9]} 48... Rxe8 {[%clk 0:00:03.8]} 49. Rxe8 {[%clk 0:00:27.8]} 49... Na6
{[%clk 0:00:03.4]} 50. Re5+ {[%clk 0:00:26]} 50... Nc5 {[%clk 0:00:04.3]} 51.
Rd6 {[%clk 0:00:25.3]} 51... Ka5 {[%clk 0:00:03.4]} 52. Rxc6 {[%clk 0:00:24]}
52... Kb5 {[%clk 0:00:04.3]} 53. Rd6 {[%clk 0:00:24.3]} 53... Ka5 {[%clk
0:00:04.5]} 54. Kd2 {[%clk 0:00:24.1]} 54... b5 {[%clk 0:00:04.8]} 55. Rdd5
{[%clk 0:00:20]} 1-0

[Event "*** Titled Tuesday Blitz"]
[Site "Chess.com"]
[Date "2021.02.16"]
[Round "10"]
[White "mbojan"]
[Black "SergeyShtyka"]
[Result "1-0"]
[WhiteElo "2618"]
[BlackElo "2465"]
[TimeControl "180+1"]
[EndTime "12:00:03 PST"]
[Termination "mbojan won by resignation"]

1. c4 {[%clk 0:03:00.9]} 1... c5 {[%clk 0:02:58.2]} 2. Nc3 {[%clk 0:03:00.7]}
2... Nc6 {[%clk 0:02:58.3]} 3. g3 {[%clk 0:03:01]} 3... g6 {[%clk 0:02:58.9]} 4.
Bg2 {[%clk 0:03:01.6]} 4... Bg7 {[%clk 0:02:59.5]} 5. e3 {[%clk 0:03:01.9]} 5...
e5 {[%clk 0:02:59.9]} 6. Nge2 {[%clk 0:03:02.1]} 6... Nge7 {[%clk 0:03:00.5]} 7.
a3 {[%clk 0:03:02.1]} 7... O-O {[%clk 0:03:00.6]} 8. Rb1 {[%clk 0:03:02.3]} 8...
a5 {[%clk 0:03:01]} 9. Nd5 {[%clk 0:03:02.7]} 9... d6 {[%clk 0:02:59.7]} 10. d3
{[%clk 0:03:02.5]} 10... Nxd5 {[%clk 0:02:59.4]} 11. cxd5 {[%clk 0:03:02.3]}
11... Ne7 {[%clk 0:02:59.5]} 12. b4 {[%clk 0:03:02.9]} 12... axb4 {[%clk
0:02:30.8]} 13. axb4 {[%clk 0:03:03.8]} 13... cxb4 {[%clk 0:02:31.2]} 14. Rxb4
{[%clk 0:02:57.4]} 14... Qa5 {[%clk 0:02:21.3]} 15. Bd2 {[%clk 0:02:56.5]} 15...
Qa1 {[%clk 0:01:50.7]} 16. O-O {[%clk 0:02:55]} 16... Qxd1 {[%clk 0:01:49.5]}
17. Rxd1 {[%clk 0:02:55.9]} 17... Ra3 {[%clk 0:01:42.5]} 18. Nc3 {[%clk
0:02:54.2]} 18... f5 {[%clk 0:01:36.8]} 19. Nb5 {[%clk 0:02:42.4]} 19... Rxd3
{[%clk 0:01:35.3]} 20. Bf1 {[%clk 0:02:42.1]} 20... Rxd5 {[%clk 0:01:24.7]} 21.
Bc4 {[%clk 0:02:31.9]} 21... Be6 {[%clk 0:01:24.5]} 22. Nc7 {[%clk 0:02:17.4]}
22... Kf7 {[%clk 0:01:17.3]} 23. Nxe6 {[%clk 0:02:13.8]} 23... Kxe6 {[%clk
0:01:17]} 24. Rxb7 {[%clk 0:02:14.5]} 24... Bf6 {[%clk 0:01:00.1]} 25. Rxe7+
{[%clk 0:02:14.2]} 25... Kxe7 {[%clk 0:00:54.8]} 26. Bxd5 {[%clk 0:02:14.4]}
26... e4 {[%clk 0:00:48.7]} 27. Rc1 {[%clk 0:02:14.4]} 27... Rd8 {[%clk
0:00:47.6]} 28. Rc7+ {[%clk 0:02:14]} 28... Rd7 {[%clk 0:00:48.1]} 29. Rxd7+
{[%clk 0:02:14.2]} 29... Kxd7 {[%clk 0:00:48.5]} 30. Bg8 {[%clk 0:02:15.1]}
30... Ke7 {[%clk 0:00:47.3]} 31. Bd5 {[%clk 0:02:14.5]} 31... Be5 {[%clk
0:00:46.9]} 32. Kf1 {[%clk 0:02:15]} 32... g5 {[%clk 0:00:45.4]} 33. Ke2 {[%clk
0:02:15.9]} 33... Kf6 {[%clk 0:00:45.1]} 34. h3 {[%clk 0:02:15.3]} 34... h5
{[%clk 0:00:45.2]} 35. g4 {[%clk 0:02:15.8]} 35... hxg4 {[%clk 0:00:39.9]} 36.
hxg4 {[%clk 0:02:16.7]} 36... Bb2 {[%clk 0:00:37.2]} 37. gxf5 {[%clk 0:02:12.4]}
37... Kxf5 {[%clk 0:00:37.4]} 38. Kd1 {[%clk 0:02:12.7]} 38... Be5 {[%clk
0:00:31.5]} 39. Be1 {[%clk 0:02:09.8]} 39... Bh2 {[%clk 0:00:22.6]} 40. Kc2
{[%clk 0:02:08.7]} 40... Ke5 {[%clk 0:00:23]} 41. Bc6 {[%clk 0:02:07.5]} 41...
d5 {[%clk 0:00:22.8]} 42. Bd7 {[%clk 0:02:05.4]} 42... Bg1 {[%clk 0:00:21.9]}
43. Kc3 {[%clk 0:02:00.3]} 43... Kd6 {[%clk 0:00:20.2]} 44. Bg4 {[%clk
0:01:59.7]} 44... Ke5 {[%clk 0:00:20.4]} 45. Bh3 {[%clk 0:01:57.9]} 45... Bh2
{[%clk 0:00:18.9]} 46. Bg4 {[%clk 0:01:49]} 46... Bg1 {[%clk 0:00:18.3]} 47. Kd2
{[%clk 0:01:49.6]} 47... Bh2 {[%clk 0:00:14.9]} 48. Ke2 {[%clk 0:01:48.2]} 48...
d4 {[%clk 0:00:14.7]} 49. exd4+ {[%clk 0:01:37.1]} 49... Kxd4 {[%clk 0:00:15]}
50. Bd2 {[%clk 0:01:37.5]} 50... Bf4 {[%clk 0:00:14.3]} 51. Be3+ {[%clk
0:01:34.9]} 51... Ke5 {[%clk 0:00:13.2]} 52. Kd2 {[%clk 0:01:33.3]} 52... Kd5
{[%clk 0:00:13.5]} 53. Kc2 {[%clk 0:01:31.6]} 53... Ke5 {[%clk 0:00:12.9]} 54.
Kc3 {[%clk 0:01:31.7]} 54... Kd5 {[%clk 0:00:13.3]} 55. Kb3 {[%clk 0:01:30.7]}
55... Be5 {[%clk 0:00:07.9]} 56. Bxg5 {[%clk 0:01:28.2]} 56... Bd4 {[%clk
0:00:08.3]} 57. Be3 {[%clk 0:01:28.2]} 57... Bf6 {[%clk 0:00:07.7]} 58. Be2
{[%clk 0:01:27.5]} 58... Bh4 {[%clk 0:00:07.1]} 59. Ba6 {[%clk 0:01:27.5]} 59...
Bf6 {[%clk 0:00:06.5]} 60. Bb7+ {[%clk 0:01:27.6]} 60... Ke5 {[%clk 0:00:06.9]}
61. Kc4 {[%clk 0:01:28.1]} 61... Bh4 {[%clk 0:00:06.8]} 62. Kc3 {[%clk
0:01:21.3]} 62... Be7 {[%clk 0:00:06.1]} 63. Kd2 {[%clk 0:01:21.5]} 63... Bh4
{[%clk 0:00:06]} 64. Ke2 {[%clk 0:01:21.7]} 64... Be7 {[%clk 0:00:06.1]} 65. Ba7
{[%clk 0:01:20.6]} 65... Bh4 {[%clk 0:00:05.6]} 66. Bb8+ {[%clk 0:01:20.8]}
66... Kd4 {[%clk 0:00:05.8]} 67. Bf4 {[%clk 0:01:19.3]} 67... Bf6 {[%clk
0:00:05.3]} 68. Bc1 {[%clk 0:01:18.6]} 68... Be7 {[%clk 0:00:04.5]} 69. Bb2+
{[%clk 0:01:18.4]} 69... Kc5 {[%clk 0:00:05]} 70. Bxe4 {[%clk 0:01:18.7]} 70...
Kd6 {[%clk 0:00:04.7]} 71. f4 {[%clk 0:01:18.8]} 71... Ke6 {[%clk 0:00:04.8]}
72. f5+ {[%clk 0:01:19.1]} 72... Kf7 {[%clk 0:00:05.2]} 73. Bd5+ {[%clk
0:01:19.7]} 73... Kf8 {[%clk 0:00:05.2]} 74. Kf3 {[%clk 0:01:19.3]} 74... Bd6
{[%clk 0:00:05.2]} 75. f6 {[%clk 0:01:19.3]} 75... Bc5 {[%clk 0:00:04.8]} 76.
Ke4 {[%clk 0:01:19.4]} 76... Ke8 {[%clk 0:00:05]} 77. Kf5 {[%clk 0:01:19.6]}
77... Kf8 {[%clk 0:00:05.3]} 78. Ke6 {[%clk 0:01:19.5]} 78... Ke8 {[%clk
0:00:04.6]} 79. f7+ {[%clk 0:01:20.1]} 79... Kf8 {[%clk 0:00:04.7]} 80. Bc1
{[%clk 0:01:20.7]} 80... Bd4 {[%clk 0:00:03.7]} 81. Bh6+ {[%clk 0:01:20.5]}
81... Bg7 {[%clk 0:00:04.3]} 82. Bxg7+ {[%clk 0:01:20.7]} 82... Kxg7 {[%clk
0:00:05.1]} 83. Ke7 {[%clk 0:01:21.5]} 83... Kh7 {[%clk 0:00:05.5]} 84. f8=Q
{[%clk 0:01:20.9]} 1-0